[Event "Late-Titled-Tuesday-Blitz-March-12-2024"]
[Site "Chess.com"]
[Date "2024.03.12"]
[Round "7"]
[White "shimastream"]
[Black "The_Machine04"]
[Result "1-0"]
[WhiteElo "2983"]
[BlackElo "2815"]
[TimeControl "180+1"]
[EndTime "15:15:51 PDT"]
[Termination "shimastream won on time"]

1. Nf3 {[%clk 0:03:00.9]} 1... Nf6 {[%clk 0:02:59]} 2. c4 {[%clk 0:03:00.1]}
2... e6 {[%clk 0:02:54.7]} 3. g3 {[%clk 0:02:58.8]} 3... d5 {[%clk 0:02:53.7]}
4. Bg2 {[%clk 0:02:57.9]} 4... dxc4 {[%clk 0:02:53.2]} 5. Qa4+ {[%clk
0:02:55.6]} 5... Bd7 {[%clk 0:02:35.6]} 6. Qxc4 {[%clk 0:02:54.8]} 6... c5
{[%clk 0:02:36.5]} 7. Ne5 {[%clk 0:02:54.2]} 7... Qc8 {[%clk 0:02:36.6]} 8. Qd3
{[%clk 0:02:30]} 8... Nc6 {[%clk 0:02:34.2]} 9. Nxd7 {[%clk 0:02:30.1]} 9...
Nxd7 {[%clk 0:02:33]} 10. O-O {[%clk 0:02:25.9]} 10... Be7 {[%clk 0:02:33]} 11.
Nc3 {[%clk 0:02:24.7]} 11... O-O {[%clk 0:02:31.7]} 12. b3 {[%clk 0:02:21.7]}
12... Rd8 {[%clk 0:02:30.7]} 13. Bb2 {[%clk 0:02:21.7]} 13... Nf6 {[%clk
0:02:30.8]} 14. Qc2 {[%clk 0:02:19.1]} 14... Nd4 {[%clk 0:02:27.3]} 15. Qd1
{[%clk 0:02:19]} 15... Qd7 {[%clk 0:02:21.1]} 16. Rc1 {[%clk 0:02:13.5]} 16...
Rac8 {[%clk 0:02:20.7]} 17. d3 {[%clk 0:02:11.6]} 17... b6 {[%clk 0:02:19.8]}
18. Qd2 {[%clk 0:02:10.7]} 18... Nd5 {[%clk 0:02:18.9]} 19. Nxd5 {[%clk
0:02:09]} 19... exd5 {[%clk 0:02:19.6]} 20. e3 {[%clk 0:02:07.4]} 20... Ne6
{[%clk 0:02:18.7]} 21. f4 {[%clk 0:02:05.5]} 21... d4 {[%clk 0:02:00]} 22. e4
{[%clk 0:02:05.2]} 22... Nf8 {[%clk 0:01:52.9]} 23. Rce1 {[%clk 0:01:58.9]}
23... b5 {[%clk 0:01:48.4]} 24. e5 {[%clk 0:01:58]} 24... c4 {[%clk 0:01:46.8]}
25. bxc4 {[%clk 0:01:58.9]} 25... bxc4 {[%clk 0:01:47.2]} 26. dxc4 {[%clk
0:01:59.8]} 26... Rxc4 {[%clk 0:01:44.3]} 27. Qd3 {[%clk 0:01:59.5]} 27... Qa4
{[%clk 0:01:37.7]} 28. f5 {[%clk 0:01:55.6]} 28... Qc2 {[%clk 0:01:36.5]} 29.
Be4 {[%clk 0:01:53.4]} 29... Qxd3 {[%clk 0:01:11.8]} 30. Bxd3 {[%clk 0:01:54.3]}
30... Rc7 {[%clk 0:01:11.6]} 31. Rc1 {[%clk 0:01:48.1]} 31... Rb7 {[%clk
0:01:08]} 32. Ba1 {[%clk 0:01:48]} 32... Ba3 {[%clk 0:00:44.6]} 33. Rc2 {[%clk
0:01:46.3]} 33... Re7 {[%clk 0:00:40.5]} 34. Re1 {[%clk 0:01:45.4]} 34... Red7
{[%clk 0:00:32.3]} 35. Re4 {[%clk 0:01:42]} 35... Rd5 {[%clk 0:00:24.4]} 36. e6
{[%clk 0:01:33]} 36... fxe6 {[%clk 0:00:22.7]} 37. fxe6 {[%clk 0:01:33.9]} 37...
Ng6 {[%clk 0:00:21.3]} 38. Kg2 {[%clk 0:01:29.7]} 38... Ne5 {[%clk 0:00:18.6]}
39. Rd2 {[%clk 0:01:25.9]} 39... Bb4 {[%clk 0:00:17.6]} 40. Rd1 {[%clk
0:01:25.9]} 40... Bc3 {[%clk 0:00:15.4]} 41. Bc2 {[%clk 0:01:21.2]} 41... Bxa1
{[%clk 0:00:11.7]} 42. e7 {[%clk 0:01:21.5]} 1-0

[Event "Late-Titled-Tuesday-Blitz-March-12-2024"]
[Site "Chess.com"]
[Date "2024.03.12"]
[Round "7"]
[White "Cmorales2001"]
[Black "JaackCamel"]
[Result "1-0"]
[WhiteElo "2377"]
[BlackElo "2201"]
[TimeControl "180+1"]
[EndTime "15:15:54 PDT"]
[Termination "Cmorales2001 won by resignation"]

1. e4 {[%clk 0:03:00.9]} 1... e6 {[%clk 0:02:58.1]} 2. d4 {[%clk 0:02:59]} 2...
d5 {[%clk 0:02:57.7]} 3. Nd2 {[%clk 0:02:59.2]} 3... c5 {[%clk 0:02:57.1]} 4.
Ngf3 {[%clk 0:02:57]} 4... cxd4 {[%clk 0:02:56.3]} 5. exd5 {[%clk 0:02:57.2]}
5... Qxd5 {[%clk 0:02:55.6]} 6. Bc4 {[%clk 0:02:56.5]} 6... Qd6 {[%clk
0:02:55.3]} 7. O-O {[%clk 0:02:56.2]} 7... Nf6 {[%clk 0:02:54.2]} 8. Re1 {[%clk
0:02:56]} 8... Nc6 {[%clk 0:02:53.6]} 9. Nb3 {[%clk 0:02:54.4]} 9... a6 {[%clk
0:02:52.7]} 10. Nbxd4 {[%clk 0:02:53.9]} 10... Nxd4 {[%clk 0:02:52.7]} 11. Qxd4
{[%clk 0:02:54.2]} 11... Qxd4 {[%clk 0:02:52.3]} 12. Nxd4 {[%clk 0:02:55.1]}
12... b5 {[%clk 0:02:49.5]} 13. Bb3 {[%clk 0:02:51.5]} 13... Bb7 {[%clk
0:02:48.1]} 14. a4 {[%clk 0:02:40.5]} 14... b4 {[%clk 0:02:39.3]} 15. a5 {[%clk
0:02:31.3]} 15... Bc5 {[%clk 0:02:28.3]} 16. Ba4+ {[%clk 0:02:17.5]} 16... Kf8
{[%clk 0:02:17.8]} 17. Nb3 {[%clk 0:02:15.6]} 17... Ba7 {[%clk 0:02:03.4]} 18.
Bf4 {[%clk 0:02:11.7]} 18... Nd5 {[%clk 0:01:54.9]} 19. Bd6+ {[%clk 0:02:10.8]}
19... Kg8 {[%clk 0:01:54.6]} 20. Nc5 {[%clk 0:02:09.3]} 20... Bxc5 {[%clk
0:01:45.9]} 21. Bxc5 {[%clk 0:02:09.5]} 21... h6 {[%clk 0:01:30.6]} 22. Bd4
{[%clk 0:02:02]} 22... Kh7 {[%clk 0:01:28.3]} 23. c4 {[%clk 0:02:01.5]} 23...
Nf4 {[%clk 0:01:10.7]} 24. f3 {[%clk 0:01:54.8]} 24... Rhd8 {[%clk 0:01:04.4]}
25. Rad1 {[%clk 0:01:51.7]} 25... Rac8 {[%clk 0:00:55.3]} 26. b3 {[%clk
0:01:29.1]} 26... f6 {[%clk 0:00:39]} 27. Bb6 {[%clk 0:01:28.2]} 27... Rxd1
{[%clk 0:00:19.5]} 28. Rxd1 {[%clk 0:01:29.1]} 28... Ne2+ {[%clk 0:00:16.1]} 29.
Kf2 {[%clk 0:01:29.5]} 29... Nc3 {[%clk 0:00:16.8]} 30. Rd7 {[%clk 0:01:28.5]}
30... Bc6 {[%clk 0:00:12.6]} 31. Bxc6 {[%clk 0:01:27.7]} 31... Rxc6 {[%clk
0:00:12.6]} 32. Rb7 {[%clk 0:01:24.8]} 32... Nb1 {[%clk 0:00:11.4]} 33. Be3
{[%clk 0:01:23.3]} 33... Na3 {[%clk 0:00:09.4]} 34. Rxb4 {[%clk 0:01:22.3]}
34... Nc2 {[%clk 0:00:09.6]} 35. Rb6 {[%clk 0:01:22.8]} 35... Rc7 {[%clk
0:00:08.5]} 36. Rxa6 {[%clk 0:01:22.5]} 36... Rb7 {[%clk 0:00:08.5]} 37. Rb6
{[%clk 0:01:21.8]} 37... Ra7 {[%clk 0:00:08.1]} 38. a6 {[%clk 0:01:22.1]} 38...
Nxe3 {[%clk 0:00:07.4]} 39. Kxe3 {[%clk 0:01:21.4]} 39... Kg6 {[%clk 0:00:07.9]}
40. b4 {[%clk 0:01:22]} 40... Kf5 {[%clk 0:00:07.4]} 41. b5 {[%clk 0:01:22.6]}
41... Ke5 {[%clk 0:00:07.4]} 1-0

[Event "Late-Titled-Tuesday-Blitz-March-12-2024"]
[Site "Chess.com"]
[Date "2024.03.12"]
[Round "7"]
[White "AlexeiShirov"]
[Black "LikeWater"]
[Result "1-0"]
[WhiteElo "2871"]
[BlackElo "2685"]
[TimeControl "180+1"]
[EndTime "15:15:55 PDT"]
[Termination "AlexeiShirov won on time"]

1. e4 {[%clk 0:03:00.9]} 1... c5 {[%clk 0:02:58.8]} 2. Nf3 {[%clk 0:03:00.2]}
2... a6 {[%clk 0:02:59]} 3. c3 {[%clk 0:02:58]} 3... d5 {[%clk 0:02:58.8]} 4.
exd5 {[%clk 0:02:56.1]} 4... Qxd5 {[%clk 0:02:59.7]} 5. d4 {[%clk 0:02:54.3]}
5... e6 {[%clk 0:02:59.8]} 6. c4 {[%clk 0:02:51.8]} 6... Qd8 {[%clk 0:02:37.5]}
7. Nc3 {[%clk 0:02:49.4]} 7... Nf6 {[%clk 0:02:32.7]} 8. Be3 {[%clk 0:02:45.5]}
8... cxd4 {[%clk 0:02:26.1]} 9. Nxd4 {[%clk 0:02:44.9]} 9... Nbd7 {[%clk
0:02:21]} 10. Be2 {[%clk 0:02:44.5]} 10... Bb4 {[%clk 0:02:19.7]} 11. O-O {[%clk
0:02:43.1]} 11... O-O {[%clk 0:02:16.2]} 12. Rc1 {[%clk 0:02:41.2]} 12... Qc7
{[%clk 0:02:12.5]} 13. a3 {[%clk 0:02:39.3]} 13... Bd6 {[%clk 0:02:12.2]} 14. h3
{[%clk 0:02:39.3]} 14... Bf4 {[%clk 0:02:12.7]} 15. Qd2 {[%clk 0:02:36.2]} 15...
Bxe3 {[%clk 0:02:02.5]} 16. Qxe3 {[%clk 0:02:35.8]} 16... Qe5 {[%clk 0:01:34.6]}
17. Na4 {[%clk 0:02:29.7]} 17... Qxe3 {[%clk 0:01:31.8]} 18. fxe3 {[%clk
0:02:29.2]} 18... b6 {[%clk 0:01:08.7]} 19. Bf3 {[%clk 0:02:27.6]} 19... Ra7
{[%clk 0:01:09.4]} 20. c5 {[%clk 0:02:07.6]} 20... bxc5 {[%clk 0:01:08.8]} 21.
Nxc5 {[%clk 0:02:05.3]} 21... Ne5 {[%clk 0:01:04]} 22. b4 {[%clk 0:02:04.4]}
22... Rc7 {[%clk 0:00:37.1]} 23. Be2 {[%clk 0:01:55.6]} 23... Ra7 {[%clk
0:00:30.9]} 24. Nf3 {[%clk 0:01:52.3]} 24... Ned7 {[%clk 0:00:21.3]} 25. Rfd1
{[%clk 0:01:49.8]} 25... a5 {[%clk 0:00:18.8]} 26. b5 {[%clk 0:01:48.8]} 26...
Nd5 {[%clk 0:00:14.3]} 27. e4 {[%clk 0:01:45]} 27... Nf4 {[%clk 0:00:14.2]} 28.
Bf1 {[%clk 0:01:43.6]} 28... Nxc5 {[%clk 0:00:12.2]} 29. Rxc5 {[%clk 0:01:42.9]}
29... f6 {[%clk 0:00:06]} 30. b6 {[%clk 0:01:32.6]} 30... Re7 {[%clk 0:00:05.9]}
31. Rc7 {[%clk 0:01:28.7]} 31... Kf7 {[%clk 0:00:04.5]} 32. Rdc1 {[%clk
0:01:25.4]} 32... Bd7 {[%clk 0:00:02.5]} 33. b7 {[%clk 0:01:22.1]} 33... Rb8
{[%clk 0:00:02.7]} 34. Ba6 {[%clk 0:01:20.8]} 34... Be8 {[%clk 0:00:02.2]} 35.
Rxe7+ {[%clk 0:01:18.8]} 35... Kxe7 {[%clk 0:00:03.1]} 36. Rc8 {[%clk 0:01:18]}
36... Ne2+ {[%clk 0:00:02]} 37. Kf2 {[%clk 0:01:14.8]} 1-0

[Event "Late-Titled-Tuesday-Blitz-March-12-2024"]
[Site "Chess.com"]
[Date "2024.03.12"]
[Round "7"]
[White "SantoBlue"]
[Black "Blitzstream"]
[Result "0-1"]
[WhiteElo "3029"]
[BlackElo "2752"]
[TimeControl "180+1"]
[EndTime "15:15:56 PDT"]
[Termination "Blitzstream won by resignation"]

1. g3 {[%clk 0:03:00.9]} 1... d5 {[%clk 0:02:59.8]} 2. Bg2 {[%clk 0:03:01.5]}
2... Nf6 {[%clk 0:03:00.5]} 3. Nf3 {[%clk 0:03:01.6]} 3... c6 {[%clk 0:03:01]}
4. O-O {[%clk 0:03:01.8]} 4... Bf5 {[%clk 0:03:01.7]} 5. d3 {[%clk 0:03:01.8]}
5... e6 {[%clk 0:03:02.2]} 6. b3 {[%clk 0:03:01.6]} 6... Be7 {[%clk 0:03:02.3]}
7. Bb2 {[%clk 0:03:02.3]} 7... O-O {[%clk 0:03:02.9]} 8. Nbd2 {[%clk 0:03:02.9]}
8... Nbd7 {[%clk 0:03:03.4]} 9. Re1 {[%clk 0:03:02.4]} 9... a5 {[%clk 0:03:03]}
10. a3 {[%clk 0:03:03.1]} 10... h6 {[%clk 0:03:02.3]} 11. e4 {[%clk 0:03:03.7]}
11... dxe4 {[%clk 0:03:01]} 12. Nxe4 {[%clk 0:03:02.9]} 12... Nxe4 {[%clk
0:02:59.1]} 13. dxe4 {[%clk 0:03:03.8]} 13... Bg6 {[%clk 0:02:59.6]} 14. Qe2
{[%clk 0:03:03.4]} 14... Qc7 {[%clk 0:02:56.4]} 15. Rad1 {[%clk 0:03:03.9]}
15... Rad8 {[%clk 0:02:56.3]} 16. Nh4 {[%clk 0:02:55.4]} 16... Bxh4 {[%clk
0:02:35.6]} 17. gxh4 {[%clk 0:02:55.3]} 17... Qf4 {[%clk 0:02:36.1]} 18. h5
{[%clk 0:02:53.9]} 18... Bh7 {[%clk 0:02:36.4]} 19. Rd3 {[%clk 0:02:53.6]} 19...
Ne5 {[%clk 0:02:26.1]} 20. Rg3 {[%clk 0:02:53.6]} 20... Rd2 {[%clk 0:02:21.4]}
21. Rxg7+ {[%clk 0:02:02.1]} 21... Kh8 {[%clk 0:01:53.8]} 22. Rxf7 {[%clk
0:00:53.9]} 22... Rxe2 {[%clk 0:01:47.1]} 23. Rxf8+ {[%clk 0:00:49.6]} 23...
Qxf8 {[%clk 0:01:46.7]} 24. Bxe5+ {[%clk 0:00:49.7]} 24... Kg8 {[%clk
0:01:45.2]} 25. Rxe2 {[%clk 0:00:50.2]} 25... Qxa3 {[%clk 0:01:38.8]} 26. Bh3
{[%clk 0:00:34.2]} 26... Kf7 {[%clk 0:01:20]} 27. Kg2 {[%clk 0:00:31]} 27... Qc1
{[%clk 0:01:13.2]} 28. Bg3 {[%clk 0:00:23.3]} 28... b5 {[%clk 0:01:11.5]} 29.
Re3 {[%clk 0:00:12.7]} 29... Qxc2 {[%clk 0:01:09.5]} 30. Rf3+ {[%clk 0:00:04.2]}
30... Ke7 {[%clk 0:01:08.7]} 31. Bh4+ {[%clk 0:00:03]} 31... Ke8 {[%clk
0:01:06.1]} 32. Rf6 {[%clk 0:00:03.2]} 32... Qxe4+ {[%clk 0:01:01.4]} 33. f3
{[%clk 0:00:02.8]} 33... Qxh4 {[%clk 0:00:58]} 0-1

[Event "Late-Titled-Tuesday-Blitz-March-12-2024"]
[Site "Chess.com"]
[Date "2024.03.12"]
[Round "7"]
[White "the_blue_pill"]
[Black "lucasran"]
[Result "1-0"]
[WhiteElo "2470"]
[BlackElo "2598"]
[TimeControl "180+1"]
[EndTime "15:15:56 PDT"]
[Termination "the_blue_pill won on time"]

1. e4 {[%clk 0:02:58.8]} 1... c6 {[%clk 0:02:59.8]} 2. d4 {[%clk 0:02:54.8]}
2... d5 {[%clk 0:03:00.7]} 3. exd5 {[%clk 0:02:55.2]} 3... cxd5 {[%clk
0:03:01.6]} 4. c4 {[%clk 0:02:55.8]} 4... Nf6 {[%clk 0:03:01.7]} 5. Nf3 {[%clk
0:02:56]} 5... Nc6 {[%clk 0:03:02.2]} 6. Nc3 {[%clk 0:02:54.6]} 6... Bg4 {[%clk
0:03:02.6]} 7. Be3 {[%clk 0:02:53.1]} 7... e6 {[%clk 0:03:03]} 8. c5 {[%clk
0:02:53.1]} 8... Be7 {[%clk 0:02:55.7]} 9. Bb5 {[%clk 0:02:52.3]} 9... O-O
{[%clk 0:02:56.1]} 10. O-O {[%clk 0:02:50.4]} 10... Rc8 {[%clk 0:02:39.1]} 11.
h3 {[%clk 0:02:49.6]} 11... Bxf3 {[%clk 0:02:36.3]} 12. Qxf3 {[%clk 0:02:48.2]}
12... b6 {[%clk 0:02:37.1]} 13. Bxc6 {[%clk 0:02:46.3]} 13... Rxc6 {[%clk
0:02:37.5]} 14. b4 {[%clk 0:02:47]} 14... bxc5 {[%clk 0:02:36.4]} 15. bxc5
{[%clk 0:02:40.6]} 15... Qa5 {[%clk 0:02:35.6]} 16. Bf4 {[%clk 0:02:36.7]} 16...
Nd7 {[%clk 0:02:12.8]} 17. Nxd5 {[%clk 0:02:33.4]} 17... exd5 {[%clk 0:02:04.4]}
18. Qxd5 {[%clk 0:02:33]} 18... Rc7 {[%clk 0:01:52.6]} 19. Bxc7 {[%clk
0:02:30.7]} 19... Qxc7 {[%clk 0:01:53.5]} 20. Rfe1 {[%clk 0:02:29.6]} 20... Nf6
{[%clk 0:01:51.5]} 21. Qc4 {[%clk 0:02:27.2]} 21... Rd8 {[%clk 0:01:51.4]} 22.
Rad1 {[%clk 0:02:14.7]} 22... Rd5 {[%clk 0:01:50]} 23. Re5 {[%clk 0:02:06.8]}
23... Rxe5 {[%clk 0:01:43.4]} 24. dxe5 {[%clk 0:02:07]} 24... Qxe5 {[%clk
0:01:44.3]} 25. c6 {[%clk 0:02:07.4]} 25... Qc7 {[%clk 0:01:34.6]} 26. Qb5
{[%clk 0:02:00.5]} 26... Kf8 {[%clk 0:01:15]} 27. Qb7 {[%clk 0:01:57.8]} 27...
Bd6 {[%clk 0:01:12.1]} 28. Rxd6 {[%clk 0:01:45.7]} 28... Qxd6 {[%clk 0:01:13]}
29. c7 {[%clk 0:01:46.2]} 29... Qd1+ {[%clk 0:00:37.4]} 30. Kh2 {[%clk
0:01:44.8]} 30... Qd6+ {[%clk 0:00:34.8]} 31. g3 {[%clk 0:01:43.7]} 31... g6
{[%clk 0:00:35.6]} 32. c8=Q+ {[%clk 0:01:42.5]} 32... Kg7 {[%clk 0:00:36.1]} 33.
Qcc7 {[%clk 0:01:28.3]} 33... Qe6 {[%clk 0:00:32.7]} 34. Qxa7 {[%clk 0:01:26.2]}
34... Nd5 {[%clk 0:00:07]} 35. Qd4+ {[%clk 0:01:19.3]} 35... Kh6 {[%clk
0:00:01.2]} 36. Qc1+ {[%clk 0:01:12.1]} 1-0

[Event "Late-Titled-Tuesday-Blitz-March-12-2024"]
[Site "Chess.com"]
[Date "2024.03.12"]
[Round "7"]
[White "Herman-NY"]
[Black "AryanTari"]
[Result "0-1"]
[WhiteElo "2542"]
[BlackElo "2907"]
[TimeControl "180+1"]
[EndTime "15:15:59 PDT"]
[Termination "AryanTari won by resignation"]

1. e4 {[%clk 0:03:00.9]} 1... c5 {[%clk 0:02:50]} 2. Nf3 {[%clk 0:03:01.2]} 2...
Nc6 {[%clk 0:02:50.3]} 3. Bb5 {[%clk 0:03:01.5]} 3... e5 {[%clk 0:02:42.7]} 4.
O-O {[%clk 0:02:30]} 4... Bd6 {[%clk 0:02:41.8]} 5. a3 {[%clk 0:02:26.8]} 5...
Nge7 {[%clk 0:02:40.7]} 6. b4 {[%clk 0:02:22.5]} 6... cxb4 {[%clk 0:02:31.6]} 7.
axb4 {[%clk 0:02:23.4]} 7... Bxb4 {[%clk 0:02:29.9]} 8. c3 {[%clk 0:02:20.9]}
8... Bd6 {[%clk 0:02:22.6]} 9. d4 {[%clk 0:02:19.1]} 9... O-O {[%clk 0:02:03.8]}
10. h4 {[%clk 0:01:11.9]} 10... Ng6 {[%clk 0:01:39.4]} 11. h5 {[%clk 0:01:12.1]}
11... Nh4 {[%clk 0:01:39.2]} 12. Nxh4 {[%clk 0:01:04.8]} 12... Qxh4 {[%clk
0:01:38.1]} 13. f4 {[%clk 0:01:05.3]} 13... exf4 {[%clk 0:01:26.4]} 14. Nd2
{[%clk 0:00:29.5]} 14... Bc7 {[%clk 0:00:59.6]} 15. Nf3 {[%clk 0:00:05.3]} 15...
Qxh5 {[%clk 0:00:59.6]} 16. Bd3 {[%clk 0:00:04]} 16... d5 {[%clk 0:00:58]} 17.
e5 {[%clk 0:00:04.2]} 17... Bg4 {[%clk 0:00:52.8]} 18. Bxf4 {[%clk 0:00:04.3]}
18... f6 {[%clk 0:00:53.5]} 19. Qd2 {[%clk 0:00:02.3]} 19... fxe5 {[%clk
0:00:53.3]} 20. dxe5 {[%clk 0:00:01.6]} 20... Bb6+ {[%clk 0:00:48.9]} 21. Be3
{[%clk 0:00:01]} 21... Bxf3 {[%clk 0:00:49]} 22. Rxf3 {[%clk 0:00:01.1]} 22...
Rxf3 {[%clk 0:00:46.2]} 23. gxf3 {[%clk 0:00:02]} 23... Nxe5 {[%clk 0:00:46.6]}
24. Be2 {[%clk 0:00:02.4]} 24... Qg5+ {[%clk 0:00:43.5]} 25. Kf2 {[%clk
0:00:02.9]} 25... Rf8 {[%clk 0:00:35.2]} 26. Bxb6 {[%clk 0:00:02.3]} 0-1

[Event "Late-Titled-Tuesday-Blitz-March-12-2024"]
[Site "Chess.com"]
[Date "2024.03.12"]
[Round "7"]
[White "tarno17"]
[Black "Josgar05"]
[Result "1-0"]
[WhiteElo "2227"]
[BlackElo "2330"]
[TimeControl "180+1"]
[EndTime "15:16:00 PDT"]
[Termination "tarno17 won by checkmate"]

1. e4 {[%clk 0:03:00.2]} 1... g6 {[%clk 0:03:00.9]} 2. d4 {[%clk 0:02:49.2]}
2... Bg7 {[%clk 0:02:59.5]} 3. Nc3 {[%clk 0:02:49.1]} 3... c6 {[%clk 0:02:55.8]}
4. Be3 {[%clk 0:02:49.2]} 4... d5 {[%clk 0:02:53.3]} 5. f3 {[%clk 0:02:42.2]}
5... Nf6 {[%clk 0:02:49.8]} 6. Qd2 {[%clk 0:02:17.1]} 6... dxe4 {[%clk
0:02:38.9]} 7. fxe4 {[%clk 0:02:12.8]} 7... Ng4 {[%clk 0:02:38.3]} 8. O-O-O
{[%clk 0:02:05.7]} 8... Nxe3 {[%clk 0:02:36.8]} 9. Qxe3 {[%clk 0:02:06]} 9...
Nd7 {[%clk 0:02:36.8]} 10. Kb1 {[%clk 0:02:05.3]} 10... Nf6 {[%clk 0:02:35.3]}
11. h3 {[%clk 0:01:59.2]} 11... O-O {[%clk 0:02:27.9]} 12. Nf3 {[%clk
0:01:57.1]} 12... b5 {[%clk 0:02:26]} 13. g4 {[%clk 0:01:39.5]} 13... b4 {[%clk
0:02:20.8]} 14. Ne2 {[%clk 0:01:36.2]} 14... Qa5 {[%clk 0:02:20.3]} 15. Nc1
{[%clk 0:01:32.8]} 15... Qc7 {[%clk 0:02:06.2]} 16. Bc4 {[%clk 0:01:18.3]} 16...
a5 {[%clk 0:02:05.4]} 17. e5 {[%clk 0:00:46.4]} 17... Nd5 {[%clk 0:02:04.3]} 18.
Qe4 {[%clk 0:00:38.8]} 18... a4 {[%clk 0:02:02.9]} 19. h4 {[%clk 0:00:35.5]}
19... a3 {[%clk 0:02:02]} 20. Bxd5 {[%clk 0:00:25.4]} 20... cxd5 {[%clk
0:02:01.4]} 21. Qd3 {[%clk 0:00:20.7]} 21... axb2 {[%clk 0:02:00]} 22. Kxb2
{[%clk 0:00:19.6]} 22... Ba6 {[%clk 0:01:59.7]} 23. Qd2 {[%clk 0:00:16.8]} 23...
Bc4 {[%clk 0:01:58.4]} 24. Nb3 {[%clk 0:00:17.5]} 24... Rfb8 {[%clk 0:01:56]}
25. Ra1 {[%clk 0:00:16.9]} 25... Ra3 {[%clk 0:01:36.9]} 26. h5 {[%clk
0:00:16.9]} 26... Rba8 {[%clk 0:01:34.2]} 27. Rhb1 {[%clk 0:00:07.1]} 27... R8a4
{[%clk 0:01:28.1]} 28. hxg6 {[%clk 0:00:06.5]} 28... hxg6 {[%clk 0:01:27.2]} 29.
Kc1 {[%clk 0:00:05.4]} 29... Rxa2 {[%clk 0:01:26]} 30. Rxa2 {[%clk 0:00:05.5]}
30... Rxa2 {[%clk 0:01:26.9]} 31. Kd1 {[%clk 0:00:06.2]} 31... Qc8 {[%clk
0:01:17.9]} 32. Qxb4 {[%clk 0:00:06.2]} 32... Qxg4 {[%clk 0:01:16.7]} 33. Nd2
{[%clk 0:00:06.7]} 33... Bh6 {[%clk 0:01:11.4]} 34. Qxe7 {[%clk 0:00:05.5]}
34... Bxd2 {[%clk 0:01:07.7]} 35. Rb8+ {[%clk 0:00:05.3]} 35... Kh7 {[%clk
0:01:02.1]} 36. Qxf7+ {[%clk 0:00:05.3]} 36... Kh6 {[%clk 0:00:58.1]} 37. Rh8#
{[%clk 0:00:06.2]} 1-0

[Event "Late-Titled-Tuesday-Blitz-March-12-2024"]
[Site "Chess.com"]
[Date "2024.03.12"]
[Round "7"]
[White "cristiano78"]
[Black "goldihouse"]
[Result "0-1"]
[WhiteElo "2252"]
[BlackElo "2626"]
[TimeControl "180+1"]
[EndTime "15:16:06 PDT"]
[Termination "goldihouse won by checkmate"]

1. d4 {[%clk 0:02:59.7]} 1... Nf6 {[%clk 0:02:59.5]} 2. c4 {[%clk 0:02:57.9]}
2... e6 {[%clk 0:02:59.7]} 3. Nf3 {[%clk 0:02:53.4]} 3... b6 {[%clk 0:02:59.6]}
4. g3 {[%clk 0:02:52.6]} 4... Ba6 {[%clk 0:02:59.5]} 5. b3 {[%clk 0:02:52.4]}
5... b5 {[%clk 0:02:59.6]} 6. cxb5 {[%clk 0:02:51.1]} 6... Bxb5 {[%clk
0:03:00.5]} 7. Bg2 {[%clk 0:02:50.8]} 7... d5 {[%clk 0:03:00.7]} 8. O-O {[%clk
0:02:50.1]} 8... Be7 {[%clk 0:03:00.7]} 9. Ba3 {[%clk 0:02:48.8]} 9... O-O
{[%clk 0:03:00.3]} 10. Bxe7 {[%clk 0:02:47.5]} 10... Qxe7 {[%clk 0:03:01.2]} 11.
Nc3 {[%clk 0:02:47.9]} 11... Ba6 {[%clk 0:03:01.1]} 12. Re1 {[%clk 0:02:45]}
12... Nbd7 {[%clk 0:02:47]} 13. Rc1 {[%clk 0:02:43.4]} 13... c5 {[%clk 0:02:44]}
14. Na4 {[%clk 0:02:41.3]} 14... Rfc8 {[%clk 0:02:42.7]} 15. dxc5 {[%clk
0:02:39.8]} 15... Nxc5 {[%clk 0:02:42.5]} 16. Nxc5 {[%clk 0:02:39.8]} 16... Rxc5
{[%clk 0:02:43.4]} 17. Nd4 {[%clk 0:02:38.7]} 17... Rac8 {[%clk 0:02:42.6]} 18.
Qd2 {[%clk 0:02:38]} 18... h6 {[%clk 0:02:39.4]} 19. Rxc5 {[%clk 0:02:32.3]}
19... Qxc5 {[%clk 0:02:38.9]} 20. e3 {[%clk 0:02:29.3]} 20... Qa3 {[%clk
0:02:31.5]} 21. Bf1 {[%clk 0:02:25.6]} 21... Ne4 {[%clk 0:02:30.4]} 22. Qd1
{[%clk 0:02:17.4]} 22... Qxa2 {[%clk 0:02:30.5]} 23. Bxa6 {[%clk 0:02:06.6]}
23... Qxa6 {[%clk 0:02:28.9]} 24. Qa1 {[%clk 0:02:03.1]} 24... Qd3 {[%clk
0:02:04.7]} 25. Qxa7 {[%clk 0:01:49]} 25... e5 {[%clk 0:02:03.6]} 26. Nf5 {[%clk
0:01:42.1]} 26... Rc2 {[%clk 0:01:53.6]} 27. Qb8+ {[%clk 0:01:33.5]} 27... Kh7
{[%clk 0:01:52.3]} 28. Qxe5 {[%clk 0:01:32.3]} 28... Nf6 {[%clk 0:01:49.3]} 29.
Nd4 {[%clk 0:01:20.7]} 29... Rb2 {[%clk 0:01:44.1]} 30. h3 {[%clk 0:00:57.6]}
30... Qc3 {[%clk 0:01:17.8]} 31. Ra1 {[%clk 0:00:44.6]} 31... Rxf2 {[%clk
0:01:16]} 32. Kxf2 {[%clk 0:00:36.1]} 32... Ne4+ {[%clk 0:01:13.3]} 33. Kf3
{[%clk 0:00:30.2]} 33... Ng5+ {[%clk 0:01:07.5]} 34. Kg4 {[%clk 0:00:20.2]}
34... Qxa1 {[%clk 0:01:07.7]} 35. Qxd5 {[%clk 0:00:13.9]} 35... Qd1+ {[%clk
0:01:06.2]} 36. Kh4 {[%clk 0:00:12.7]} 36... g6 {[%clk 0:01:01.4]} 37. Qc4
{[%clk 0:00:01.7]} 37... Qh5# {[%clk 0:00:59.3]} 0-1